[Event "Fagernes Chess GM-Swiss 2024"]
[Site "Fagernes"]
[Date "2024.03.27"]
[Round "5.21"]
[White "Southcott-Moyers, Indy"]
[Black "Petkov, Momchil"]
[Result "0-1"]
[ECO "D38"]
[WhiteElo "2120"]
[BlackElo "2500"]
[Annotator "TA"]
[PlyCount "110"]
[EventDate "2024.03.25"]
[EventType "swiss"]
[EventCountry "NOR"]
[SourceTitle "playchess.com"]
[Source "ChessBase"]
[SourceQuality "1"]
[TimeControl "40/6000+30:2400+30"]

{[%evp 17,110,51,52,54,68,39,91,33,50,43,33,36,87,41,103,80,204,181,189,118,125,123,122,101,145,110,115,127,115,42,40,0,0,0,0,0,0,0,0,0,0,0,0,0,0,0,0,0,0,0,0,0,0,-39,0,0,0,-8,-8,-20,-8,-52,-41,-172,-58,-166,-160,-333,-217,-294,-210,-217,-217,-222,-222,-222,-222,-209,-211,-199,-200,-210,-201,-29958,-29951,-29964,-29967,-29968,-29968,-29963,-29966,-29988,-29989,-29989,-29990]} 1. d4 {[%emt 0:00:34]} Nf6 {[%emt 0:01:21]} 2. c4 {[%emt 0:00:07]} e6 {[%emt 0:00:07]} 3. Nf3 {[%emt 0:00:06]} d5 {[%emt 0:00:11]} 4. Nc3 {[%emt 0:00:14]} Bb4 {[%emt 0:00:06]} 5. cxd5 {[%emt 0:01:48]} exd5 {[%emt 0:00:07]} 6. Bg5 {[%emt 0:00:04]} Nbd7 {[%emt 0:00:16][%cal Bb8d7,Bd7c5,Bc5e6][%mdl 32]} 7. Qc2 {[%emt 0:00:31]} c5 {[%emt 0:04:51]} 8. dxc5 {[%emt 0:04:41]} Qa5 {[%emt 0:01:37]} 9. Bd2 {[%emt 0:08:34]} Nxc5 {[%emt 0:13:00]} 10. a3 {[%emt 0:15:11] Rc1 ist eine echte Drohung.} Ne6 {[%emt 0:00:10]} 11. e3 {[%emt 0:02:59][%cal Be2e3,Be3e4][%mdl 32]} Bd7 {[%emt 0:09:45] Gegen Bb5 gerichtet.} ({Günstiger ist} 11... O-O $14) 12. Bd3 {[%emt 0:16:18]} ({Besser ist} 12. Rc1 $16 Bxc3 13. Bxc3) 12... Rc8 $14 {[%emt 0:02:04]} 13. O-O {[%emt 0:01:03]} Be7 {[%emt 0:00:13]} 14. Ne5 {[%emt 0:04:45]} Bc6 {[%emt 0:07:23]} (14... Qd8 $14) 15. Nxc6 {[%emt 0:01:21]} (15. Ne2 $16 Qb6 16. Bc3) 15... bxc6 {[%emt 0:00:47]} (15... Rxc6 $14 16. Na4 (16. Bb5 $2 Qxb5 17. h3 Qc4 $19) 16... Rxc2 17. Bxa5 Rc8) 16. e4 $16 {[%emt 0:04:43] Droht exd5 und aus.} d4 {[%emt 0:17:59] [#]} (16... Nd4 $16 {war angesagt.} 17. Qd1 dxe4 18. Nxe4 Qd5 19. Nxf6+ Bxf6) 17. Nd5 $1 $18 {[%emt 0:02:54][%mdl 512]} Qc5 {[%emt 0:00:06]} 18. Qxc5 {[%emt 0:11:17]} (18. Nxf6+ $18 Bxf6 19. Rac1 Qxc2 20. Rxc2) 18... Bxc5 $16 {[%emt 0:00:05]} 19. Nxf6+ {[%emt 0:00:04]} gxf6 {[%emt 0:00:07]} 20. Rac1 {[%emt 0:00:28]} Kd7 {[%emt 0:02:53]} 21. g3 {[%emt 0:00:33]} Bd6 {[%emt 0:01:46]} 22. b4 {[%emt 0:02:25]} a5 {[%emt 0:02:04]} 23. b5 {[%emt 0:07:11]} (23. f4 $16) 23... Bxa3 $14 {[%emt 0:00:59]} 24. Rxc6 {[%emt 0:05:43]} (24. bxc6+ {mit weiteren Verwicklungen.} Kd6 25. Rb1 Nc5 26. Bf4+) 24... Rxc6 {[%emt 0:01:35]} 25. bxc6+ {[%emt 0:00:05]} Kxc6 {[%emt 0:00:06] Weiss muss nun ...Bb4 beachten.} 26. Bxa5 {[%emt 0:02:08]} Ra8 {[%emt 0:04:55]} 27. Bd2 {[%emt 0:00:51] Ein starkes Läuferpaar.} Nc5 {[%emt 0:00:21]} 28. Bc4 {[%emt 0:01:00]} Nxe4 {[%emt 0:00:29]} 29. Bh6 {[%emt 0:02:26][%cal Of1a1]} Bf8 {[%emt 0:12:10]} 30. Bf4 {[%emt 0:06:00]} Bd6 {[%emt 0:01:04] Zielt auf ...Bxf4 ab.} 31. Bh6 {[%emt 0:00:53]} Bc5 {[%emt 0:17:14]} 32. Bxf7 {[%emt 0:02:13]} d3 {[%emt 0:00:46]} 33. Kg2 {[%emt 0:01:49]} Rd8 {[%emt 0:04:25]} 34. Bh5 {[%emt 0:02:04]} Kb5 {[%emt 0:00:53]} 35. Bf3 {[%emt 0:01:25]} Nc3 {[%emt 0:01:51]} 36. Bd2 {[%emt 0:00:51]} Bb4 {[%emt 0:02:32]} 37. h4 {[%emt 0:02:18]} Kc4 {[%emt 0:01:04]} 38. g4 {[%emt 0:00:37]} Na2 {[%emt 0:00:32]} 39. Bxb4 {[%emt 0:00:35]} Nxb4 $11 {[%emt 0:00:25][%mdl 4096] Endspiel. KRB-KRN} 40. Kg3 {[%emt 0:00:36]} ({Vorzuziehen ist} 40. Rc1+ $15 Kd4 41. Rc7) 40... Nc2 {[%emt 0:01:36]} (40... d2 $19 {...Nc2 wäre nun fies.} 41. g5 Nd5 42. Be2+ Kc5) 41. g5 {[%emt 0:09:06]} (41. Be4 $15) 41... d2 {[%emt 0:03:11] Droht stark ...fxg5.} 42. Rd1 $2 {[%emt 0:04:37]} (42. gxf6 $17 {kämpft weiter.} Ne1 43. Bh5) 42... Kd3 {[%emt 0:01:36]} 43. Bg4 {[%emt 0:04:59]} Nd4 {[%emt 0:01:11] Es drohte Bf5+. Und jetzt ...f5 wäre schön.} 44. Ra1 {[%emt 0:01:41]} Ne2+ $1 {[%emt 0:09:25]} 45. Kg2 {[%emt 0:02:00]} Rd4 {[%emt 0:02:37]} 46. Ra3+ {[%emt 0:02:54]} Nc3 {[%emt 0:00:10]} 47. Bf5+ {[%emt 0:00:05]} Kc4 {[%emt 0:01:55]} 48. Bc2 {[%emt 0:00:59] [#]} fxg5 {[%emt 0:02:06]} (48... d1=R 49. Bxd1 Rxd1 50. Ra7 $15) (48... Rxh4 49. gxf6 Rf4 (49... d1=R 50. Bxd1 Rf4 51. Ra6 $14) 50. Ra7 $15) 49. hxg5 {[%emt 0:00:18][%cal Oa3a7]} Rg4+ {[%emt 0:01:00]} ({Nicht} 49... d1=R 50. Bxd1 Rxd1 51. Ra7 $11) 50. Kh3 $2 {[%emt 0:00:23] [#]} (50. Kf3 $19 Rxg5 (50... d1=Q+ 51. Bxd1 Rxg5 52. Bc2 $11) 51. Ra7) 50... Rg1 $1 {[%emt 0:02:09] Schwarz setzt Matt.} (50... d1=Q 51. Bxd1 Rxg5 52. Bc2 $11) 51. Ra7 {[%emt 0:00:54]} Rc1 {[%emt 0:00:08]} ({Schwächer ist} 51... d1=R 52. Rc7+ Kd4 53. Bxd1 $15) 52. Rc7+ {[%emt 0:00:06]} Kb4 {[%emt 0:00:27]} 53. Rb7+ {[%emt 0:00:19]} Nb5 {[%emt 0:00:09]} 54. Kh4 {[%emt 0:00:58]} Rxc2 {[%emt 0:00:06]} 55. Rd7 {[%emt 0:00:05]} Rc4+ {[%emt 0:00:05] Schwarz hat seine Chance genutzt.   Gewichteter Fehlerwert: Weiß=0.37/Schwarz=0.19 (sehr präzise) .  Verlustzug:     	Weiß=1     	---        Fehler:       	Weiß=7     	Schwarz=5     Ungenau:       	Weiß=5     	Schwarz=3     OK:         	Weiß=13    	Schwarz=12    Bester:       	Weiß=2     	Schwarz=4     Stark:        	---       	Schwarz=1     Brilliant:      	Weiß=1     	---} 0-1

[Event "Fagernes Chess GM-Swiss 2024"]
[Site "Fagernes"]
[Date "2024.03.27"]
[Round "5.22"]
[White "Celik, Hasan Huseyin"]
[Black "Skotheim, Andreas"]
[Result "1-0"]
[ECO "C68"]
[WhiteElo "2417"]
[BlackElo "2214"]
[Annotator "TA"]
[PlyCount "59"]
[EventDate "2024.03.25"]
[EventType "swiss"]
[EventCountry "NOR"]
[SourceTitle "playchess.com"]
[Source "ChessBase"]
[SourceQuality "1"]
[TimeControl "40/6000+30:2400+30"]

{[%evp 11,59,43,42,47,50,46,37,45,185,180,171,185,186,170,174,181,185,178,168,179,162,171,190,184,218,222,219,213,325,282,317,304,312,305,319,324,320,293,382,349,394,395,408,407,418,381,506,422,419,417]} 1. e4 {[%emt 0:06:40]} e5 {[%emt 0:01:27]} 2. Nf3 {[%emt 0:00:09]} Nc6 {[%emt 0:00:15]} 3. Bb5 {[%emt 0:00:11]} a6 {[%emt 0:00:10]} 4. Bxc6 {[%emt 0:00:12]} bxc6 {[%emt 0:01:11]} 5. d4 {[%emt 0:04:22]} exd4 {[%emt 0:00:38]} 6. Qxd4 {[%emt 0:00:32]} Qf6 {[%emt 0:02:55]} 7. Qa4 {[%emt 0:10:10]} Bc5 {[%emt 0:03:12]} 8. O-O {[%emt 0:00:56]} Ne7 {[%emt 0:03:29]} 9. Nc3 {[%emt 0:00:38] White is slightly better.} O-O {[%emt 0:10:44] [#]} (9... a5 $14) 10. Qc4 $1 $18 {[%emt 0:01:19]} Bb6 {[%emt 0:04:28]} 11. Bg5 {[%emt 0:00:21]} Qd6 {[%emt 0:00:30]} 12. e5 {[%emt 0:09:32]} Qc5 {[%emt 0:00:33]} 13. Qxc5 {[%emt 0:00:10]} Bxc5 {[%emt 0:00:06]} 14. Ne4 {[%emt 0:00:16]} h6 {[%emt 0:01:27] [#]} 15. Bh4 $36 {[%emt 0:04:10][%mdl 2048] White is really pushing.} (15. Nxc5 $6 hxg5 16. Nxg5 d6 17. exd6 cxd6 $16) 15... g5 {[%emt 0:00:41]} (15... Bb4 $2 16. a3 g5 17. Bxg5 (17. axb4 gxh4 18. Nxh4 Nd5 $18) 17... hxg5 18. axb4) 16. Nfxg5 {[%emt 0:02:37][%cal Bf3g5,Bg5e4,Be4g3][%mdl 32]} Ng6 {[%emt 0:04:12]} 17. Nxc5 {[%emt 0:01:14] Black must now prevent Nf3. A dynamic duo of knights.} d6 {[%emt 0:01:26][%cal Bd7d6,Bd6c5,Bc5c4][%mdl 32]} 18. Nge4 {[%emt 0:10:06]} dxc5 {[%emt 0:01:55]} 19. Bf6 {[%emt 0:00:46]} Rb8 {[%emt 0:01:46]} (19... Bf5 $142) 20. b3 {[%emt 0:01:11]} (20. Nxc5 Rxb2 21. c4 Re8 $16) 20... c4 {[%emt 0:00:44]} 21. f4 {[%emt 0:00:17][%cal Bf2f4,Bf4f5][%mdl 32] And now f5 would win.} Bf5 {[%emt 0:02:32]} 22. Ng3 {[%emt 0:00:32]} Bxc2 {[%emt 0:00:12]} 23. f5 {[%emt 0:00:34]} cxb3 {[%emt 0:00:30]} 24. axb3 {[%emt 0:00:30]} (24. fxg6 b2 $18) 24... Rxb3 {[%emt 0:06:51]} 25. fxg6 {[%emt 0:00:00]} Bxg6 {[%emt 0:00:15]} 26. Rfd1 {[%emt 0:04:48]} (26. Rxa6 Bd3 27. Ra4 (27. Rxc6 Bxf1 28. Nxf1 Ra8 $18) 27... Rfb8 $18) 26... Rd3 {[%emt 0:01:56]} 27. Rdc1 {[%emt 0:00:35]} ({Don't take} 27. Rxd3 Bxd3 28. Ra3 Bb1 29. Rxa6 c5 $18) 27... Rb8 {[%emt 0:01:16]} 28. Rxa6 {[%emt 0:00:18]} Rd2 {[%emt 0:00:27]} 29. Rca1 {[%emt 0:01:12]} Kh7 {[%emt 0:00:55]} 30. Ra8 {[%emt 0:00:08] Black did not feel at home in the position after the opening.   Weighted Error Value: White=0.09 (flawless) /Black=0.28 (precise) .  Mistake:       	---       	Black=2      Inaccurate:     	---       	Black=2      OK:         	White=13    	Black=7      Best:        	---       	Black=2      Strong:       	White=1     	---} ({Weaker is} 30. Rxc6 Rbb2 31. Rc3 (31. Rxc7 $2 {perishes.} Rxg2+ 32. Kf1 Bd3+ $19) 31... Rxg2+ 32. Kf1 Bf5 $14) 1-0

[Event "Fagernes Chess GM-Swiss 2024"]
[Site "Fagernes"]
[Date "2024.03.27"]
[Round "5.23"]
[White "Al-Tarboush, Ward"]
[Black "Brynell, Stellan"]
[Result "1/2-1/2"]
[ECO "C01"]
[WhiteElo "2277"]
[BlackElo "2406"]
[Annotator "TA"]
[PlyCount "95"]
[EventDate "2024.03.25"]
[EventType "swiss"]
[EventCountry "NOR"]
[SourceTitle "playchess.com"]
[Source "ChessBase"]
[SourceQuality "1"]
[TimeControl "40/6000+30:2400+30"]

{[%evp 9,95,0,-7,1,22,8,38,32,41,0,0,0,-2,0,-11,-53,-46,-47,-26,-47,-51,-61,-44,-31,-15,-30,-20,-23,-24,-25,-20,-21,-30,-18,-26,-25,-10,-2,0,0,0,0,0,-6,0,0,0,-7,0,-3,-12,-19,-19,-19,-19,-19,-19,-19,-19,-19,-19,-19,-19,-19,-19,-19,-19,-75,-30,-81,-89,-68,-48,-48,-41,-166,-167,-172,0,0,0,0,0,-56,0,0,0,-200]} 1. e4 {[%emt 0:00:35]} e6 {[%emt 0:00:12]} 2. d4 {[%emt 0:00:08]} d5 {[%emt 0:00:07]} 3. exd5 {[%emt 0:00:08]} exd5 {[%emt 0:00:09]} 4. Bd3 {[%emt 0:00:07]} Nf6 {[%emt 0:01:51]} 5. Bg5 {[%emt 0:00:04]} h6 {[%emt 0:00:27]} 6. Bh4 {[%emt 0:00:13]} Be7 {[%emt 0:00:27]} 7. Ne2 {[%emt 0:00:26]} Ne4 {[%emt 0:08:38]} 8. Bxe7 {[%emt 0:01:00] White is slightly better.} Qxe7 {[%emt 0:00:06]} 9. f3 {[%emt 0:01:02]} Nd6 {[%emt 0:01:02]} 10. Nbc3 {[%emt 0:00:04]} c6 {[%emt 0:00:32]} 11. Qd2 {[%emt 0:00:03]} Bf5 {[%emt 0:01:29]} 12. O-O-O {[%emt 0:00:04]} Bxd3 {[%emt 0:03:37]} 13. Qxd3 {[%emt 0:00:01]} Nd7 {[%emt 0:00:33]} 14. Rhe1 {[%emt 0:00:48]} O-O-O {[%emt 0:00:28]} 15. Nf4 {[%emt 0:03:38]} Qg5 {[%emt 0:03:44]} 16. g3 {[%emt 0:01:23]} Rhe8 {[%emt 0:01:29]} 17. b3 {[%emt 0:00:18]} Qf5 {[%emt 0:06:17]} 18. Qf1 {[%emt 0:01:41]} g5 {[%emt 0:03:15]} 19. Nd3 {[%emt 0:00:47]} Qf6 {[%emt 0:01:50]} 20. Qf2 {[%emt 0:58:18]} Nf5 {[%emt 0:31:55]} 21. Rxe8 {[%emt 0:14:02]} Rxe8 {[%emt 0:00:06]} 22. Ne2 {[%emt 0:00:43]} Qe7 {[%emt 0:08:52]} 23. Re1 {[%emt 0:02:48]} Qe3+ {[%emt 0:03:23]} 24. Qxe3 {[%emt 0:00:23]} Rxe3 {[%emt 0:00:07]} 25. Kd2 {[%emt 0:01:39] [#] Hoping for g4.} Re8 {[%emt 0:02:45]} (25... Rxf3 26. Ng1 Nxd4 27. Re8+ (27. c3 Rxd3+ 28. Kxd3 Ne6 $14) 27... Kc7 28. Nxf3 Nxf3+ 29. Ke2 Nxh2 30. Re7 $18) 26. c3 {[%emt 0:00:10]} f6 {[%emt 0:01:07]} 27. g4 {[%emt 0:02:40]} Nh4 {[%emt 0:02:29]} 28. Ng1 {[%emt 0:00:07]} Rxe1 {[%emt 0:01:26]} 29. Kxe1 $11 {[%emt 0:00:02][%mdl 4096] Endgame. KNN-KNN} f5 {[%emt 0:00:36]} 30. h3 {[%emt 0:00:01]} f4 {[%emt 0:01:43]} 31. Kf2 {[%emt 0:00:24]} Ng6 {[%emt 0:01:21]} 32. Ne2 {[%emt 0:00:05]} Kc7 {[%emt 0:00:51]} 33. Nec1 {[%emt 0:00:24]} Kd6 {[%emt 0:01:17]} 34. Nb2 {[%emt 0:01:21]} Ndf8 {[%emt 0:01:40]} 35. Ncd3 {[%emt 0:00:17]} Ne6 {[%emt 0:00:22]} 36. Ke2 {[%emt 0:00:36]} b6 {[%emt 0:00:23]} 37. b4 {[%emt 0:00:18]} Nef8 {[%emt 0:02:05]} 38. a4 {[%emt 0:00:51]} (38. Kd2 $11) 38... Nd7 {[%emt 0:01:05]} 39. a5 {[%emt 0:07:00] [#]} (39. Nc1 $1 $11 {was the only way to keep the balance.}) 39... bxa5 $1 $17 {[%emt 0:06:14]} 40. bxa5 {[%emt 0:00:05]} c5 {[%emt 0:00:14]} 41. Na4 $1 {[%emt 0:41:31]} c4 {[%emt 0:40:43]} 42. Ndc5 {[%emt 0:03:42]} ({Only move:} 42. Nb4 $15) 42... Nxc5 $19 {[%emt 0:03:41]} 43. Nxc5 {[%emt 0:00:01] KN-KN} Nf8 $2 {[%emt 0:03:38]} (43... Ne7 $19 {White must now prevent ...Kc6.} 44. Kd1 Kc6) 44. Na6 $11 {[%emt 0:03:01]} Ne6 {[%emt 0:02:00]} 45. Kd2 {[%emt 0:01:46]} Nd8 {[%emt 0:01:36] Threatens to win with ...Nc6.} 46. Nc5 {[%emt 0:01:30]} (46. Nb4 $11) 46... Ne6 {[%emt 0:00:22]} (46... Nc6 $1 $15 47. a6 Ne7) 47. Na6 {[%emt 0:07:01]} Nd8 $2 {[%emt 0:00:19]} (47... Ng7 $11) 48. Nc5 {[%emt 0:00:30] Weighted Error Value: White=0.15 (very precise) /Black=0.10 (very precise) .  Missed win:     	---       	Black=1      Mistake:       	White=4     	Black=2      Inaccurate:     	White=2     	Black=2      OK:         	White=21    	Black=17     Strong:       	White=1     	Black=1} 1/2-1/2

[Event "Fagernes Chess GM-Swiss 2024"]
[Site "Fagernes"]
[Date "2024.03.27"]
[Round "5.24"]
[White "Narva, Mai"]
[Black "Rounaiv Rana"]
[Result "1-0"]
[ECO "B45"]
[WhiteElo "2399"]
[BlackElo "2099"]
[Annotator "RC"]
[PlyCount "117"]
[EventDate "2024.03.25"]
[EventType "swiss"]
[EventCountry "NOR"]
[SourceTitle "playchess.com"]
[Source "ChessBase"]
[SourceQuality "1"]
[TimeControl "40/6000+30:2400+30"]

1. e4 {[%emt 0:03:10]} c5 {[%emt 0:00:08]} 2. Nf3 {[%emt 0:00:11]} e6 {[%emt 0:00:04]} 3. d4 {[%emt 0:00:15]} cxd4 {[%emt 0:00:06]} 4. Nxd4 {[%emt 0:00:04]} Nf6 {[%emt 0:00:07]} 5. Nc3 {[%emt 0:00:11]} Nc6 {[%emt 0:00:08]} 6. Ndb5 {[%emt 0:00:17]} Bb4 {[%emt 0:00:09]} 7. a3 {[%emt 0:00:08]} Bxc3+ {[%emt 0:00:10]} 8. Nxc3 {[%emt 0:00:05]} d5 {[%emt 0:00:08]} 9. exd5 {[%emt 0:00:15]} exd5 {[%emt 0:00:07]} 10. Bd3 {[%emt 0:00:12]} O-O {[%emt 0:00:08]} 11. O-O {[%emt 0:00:08]} d4 {[%emt 0:00:05]} 12. Ne2 {[%emt 0:00:15]} Bg4 {[%emt 0:00:12]} 13. h3 {[%emt 0:00:16]} Bxe2 {[%emt 0:13:15]} 14. Bxe2 {[%emt 0:00:11]} Qd6 {[%emt 0:01:54]} 15. Re1 {[%emt 0:00:32]} Rfe8 {[%emt 0:01:34]} 16. b4 {[%emt 0:00:48]} a6 {[%emt 0:21:12]} 17. Bb2 {[%emt 0:03:16]} Rad8 {[%emt 0:03:06]} 18. Bf1 {[%emt 0:11:21]} Rxe1 {[%emt 0:20:08]} 19. Qxe1 {[%emt 0:00:05]} b5 {[%emt 0:00:23]} 20. Rd1 {[%emt 0:12:31]} Qe6 {[%emt 0:10:47]} 21. Qd2 {[%emt 0:08:19]} Qa2 {[%emt 0:05:36]} 22. Qc1 {[%emt 0:02:52]} Ne4 {[%emt 0:10:13]} 23. Re1 {[%emt 0:08:22]} Nd6 {[%emt 0:03:00]} 24. Qf4 {[%emt 0:07:21]} Qd5 {[%emt 0:01:13]} 25. Bd3 {[%emt 0:04:57]} Nc4 {[%emt 0:06:41]} 26. Qh4 {[%emt 0:14:58]} f5 {[%emt 0:04:39]} 27. Bc1 {[%emt 0:01:27]} Rf8 {[%emt 0:00:48]} 28. Qg3 {[%emt 0:02:11]} N6e5 {[%emt 0:01:55]} 29. Bxc4 {[%emt 0:11:13]} Nxc4 {[%emt 0:00:06]} 30. Re7 {[%emt 0:03:26]} Rf7 {[%emt 0:00:09]} 31. Qb8+ {[%emt 0:02:11]} Rf8 {[%emt 0:00:08]} 32. Qc7 {[%emt 0:00:46]} Rf7 {[%emt 0:00:16]} 33. Qc8+ {[%emt 0:05:04]} Rf8 {[%emt 0:00:07]} 34. Qxa6 {[%emt 0:01:54]} Ra8 {[%emt 0:00:34]} 35. Qb7 {[%emt 0:00:38]} Qxb7 {[%emt 0:00:07]} 36. Rxb7 {[%emt 0:00:04]} Nxa3 {[%emt 0:00:30]} 37. Bxa3 {[%emt 0:00:13]} Rxa3 {[%emt 0:00:06]} 38. Rxb5 {[%emt 0:00:47]} Ra2 {[%emt 0:03:32]} 39. Rc5 {[%emt 0:00:47]} Rb2 {[%emt 0:01:54]} 40. Rc4 {[%emt 0:02:10]} Kf7 {[%emt 0:01:33]} 41. Kf1 {[%emt 0:40:15]} Kf6 {[%emt 0:42:15]} 42. Ke2 {[%emt 0:00:34]} Ke5 {[%emt 0:01:01]} 43. Kd3 {[%emt 0:01:04]} Rb1 {[%emt 0:00:13]} 44. Rc5+ {[%emt 0:00:40]} Ke6 {[%emt 0:00:00]} 45. Kc4 {[%emt 0:00:00]} Rb2 {[%emt 0:00:00]} 46. Kb5 {[%emt 0:00:00]} g5 {[%emt 0:00:00]} 47. Ka4 {[%emt 0:00:00]} d3 {[%emt 0:00:00]} 48. cxd3 {[%emt 0:00:00]} Rxf2 {[%emt 0:00:00]} 49. g4 {[%emt 0:00:00]} fxg4 {[%emt 0:00:00]} 50. hxg4 {[%emt 0:00:00]} h6 {[%emt 0:00:00]} 51. b5 {[%emt 0:00:00]} Rf4+ {[%emt 0:00:00]} 52. Rc4 {[%emt 0:00:00]} h5 {[%emt 0:00:00]} 53. b6 {[%emt 0:00:32]} Kd6 {[%emt 0:00:00]} 54. b7 {[%emt 0:01:44]} Rxc4+ {[%emt 0:00:00]} 55. dxc4 {[%emt 0:00:04]} Kc7 {[%emt 0:00:00]} 56. gxh5 {[%emt 0:00:12]} g4 {[%emt 0:00:00]} 57. h6 {[%emt 0:00:12]} g3 {[%emt 0:00:00]} 58. h7 {[%emt 0:00:13]} g2 {[%emt 0:00:00]} 59. b8=Q+ {[%emt 0:00:27]} 1-0

[Event "Fagernes Chess GM-Swiss 2024"]
[Site "Fagernes"]
[Date "2024.03.27"]
[Round "5.25"]
[White "Audi Ameya"]
[Black "Skramstad, Oda Kofoed"]
[Result "1-0"]
[ECO "B31"]
[WhiteElo "2378"]
[BlackElo "1945"]
[Annotator "RC"]
[PlyCount "41"]
[EventDate "2024.03.25"]
[EventType "swiss"]
[EventCountry "NOR"]
[SourceTitle "playchess.com"]
[Source "ChessBase"]
[SourceQuality "1"]
[TimeControl "40/6000+30:2400+30"]

1. e4 {[%emt 0:00:04]} c5 {[%emt 0:00:21]} 2. Nf3 {[%emt 0:00:08]} Nc6 {[%emt 0:00:24]} 3. Bb5 {[%emt 0:04:08]} g6 {[%emt 0:00:46]} 4. O-O {[%emt 0:00:08]} Bg7 {[%emt 0:00:52]} 5. Re1 {[%emt 0:01:01]} Nf6 {[%emt 0:01:01]} 6. c3 {[%emt 0:00:28]} O-O {[%emt 0:01:38]} 7. d4 {[%emt 0:00:03]} cxd4 {[%emt 0:01:47]} 8. cxd4 {[%emt 0:00:06]} d6 {[%emt 0:00:38]} 9. h3 {[%emt 0:03:20]} Bd7 {[%emt 0:06:13]} 10. Nc3 {[%emt 0:00:35]} Rc8 {[%emt 0:01:27]} 11. Bg5 {[%emt 0:18:11]} a6 {[%emt 0:04:35]} 12. Bxc6 {[%emt 0:13:41]} Bxc6 {[%emt 0:02:45]} 13. e5 {[%emt 0:00:04]} dxe5 {[%emt 0:02:26]} 14. dxe5 {[%emt 0:00:05]} Nd7 {[%emt 0:01:37]} 15. Nd5 {[%emt 0:00:15]} Re8 {[%emt 0:05:49]} 16. e6 {[%emt 0:02:18]} fxe6 {[%emt 0:00:55]} 17. Rxe6 {[%emt 0:00:06]} Bxd5 {[%emt 0:06:16]} 18. Qxd5 {[%emt 0:00:06]} Nc5 {[%emt 0:02:07]} 19. Rd6+ {[%emt 0:01:05]} e6 {[%emt 0:03:06]} 20. Qxc5 {[%emt 0:00:04]} Rxc5 {[%emt 0:03:15]} 21. Bxd8 {[%emt 0:00:39]} 1-0